Cogmind - Beta 15 @@@ ROGUE MODE // 2025.07.06 @ 12:21:04 Player: f3-rnm Result: Destroyed by S-43 Plague with Heavy Machine Gun Performance ------------- Evolutions (7) 3500 Regions Visited (14) 2800 Robots Destroyed (98) 490 Value Destroyed (4811) 4811 Prototype IDs (22) 440 Alien Tech Used (0) 0 Bonus (4053) 4053 TOTAL SCORE: 16094 Bonus ------- High Alert Combat Kills 556 Follower Combat Kills 1816 Registered with UFD 300 Met Warlord at Base 500 MAIN.C Attacked Warlord 500 Warlord Defense Kills 54 Scanned by Researcher 500 Friendly Fire -173 Cogmind --------- Core Integrity 0/1300 Matter 113/300 Energy 100/100 System Corruption 31% Temperature Cool (0) Movement Treading (157) Location -3/Testing Parts ------- > --- POWER (3) -------- (None) > --- PROPULSION (2) --- Armored Medium Treads Advanced Medium Treads > --- UTILITY (12) ----- (None) > --- WEAPON (4) ------- (None) > --- INVENTORY (5) ---- Scrap Suit Huge Storage Unit Seismic Detector Mapping Drone Bay (3/3) Peak State ------------ > --- POWER ------------ Improved Quantum Reactor Vortex Chain Reactor > --- PROPULSION ------- Overtuned Huge Scrapsphere > --- UTILITY ---------- Scrap Suit Advanced Heat Sink Improved Cooling System Huge Storage Unit Experimental Optical Array Makeshift Salvage Targeting Computer Experimental Targeting Computer Experimental Core Analyzer Layered Medium Armor Plating Centrium Light Armor Plating Hacking Suite > --- WEAPON ----------- Overtuned Quantum Rifle Overtuned Coil Gun Overtuned Railgun Overtuned Railgun > --- INVENTORY -------- Light Angular Momentum Engine Neutrino Core Light Neutrino Core Scrap Suit Scrap Suit Machine Analyzer Advanced Sensor Array Advanced Signal Interpreter Seismic Detector Experimental Core Analyzer Advanced Recoil Stabilizer Advanced Kinecellerator Reflective Plating Mapping Drone Bay Overtuned Beamcaster Overtuned Beamcaster Overtuned Quantum Rifle Overtuned Quantum Rifle Overtuned Quantum Rifle Overtuned Quantum Rifle KE Penetrator Hypervelocity Coil Gun Vortex Lance [Rating: 149] Favorites ----------- Power Reinforced Deuterium Engine Engine Reinforced Deuterium Engine Power Core Light Neutrino Core Reactor Vortex Chain Reactor Propulsion Overtuned Huge Scrapsphere Treads Light Treads Wheel Overtuned Huge Scrapsphere Hover Unit Gravmag Array Flight Unit VTOL Module Utility Huge Storage Unit Device Scrap Suit Storage Huge Storage Unit Processor Core Analyzer Hackware Hacking Suite Protection Improved Medium Armor Plating Weapon Overtuned Coil Gun Energy Gun Overtuned Beamcaster Energy Cannon Beam Cannon Ballistic Gun Overtuned Coil Gun Ballistic Cannon Light Cannon Special Weapon CPS Tube Impact Weapon Hammer Slashing Weapon Greatsword Piercing Weapon Vortex Lance Build | -11 -10 -10 -9 -9 -6 -6 -5 -4 -4 -4 -4 -3 -3 -3 ------- Run | Yrd Mat Sub Rec Scr Fac Ext Fac Fac Upp Upp War Pro Res Tes Slots Evolved 14 | . . . . . 8 . 2 2 . . . . 2 . Power 2 | . . . . . 1 . . 1 . . . . . . Propulsion . | . . . . . . . . . . . . . . . Utility 10 | . . . . . 6 . 2 . . . . . 2 . Weapon 2 | . . . . . 1 . . 1 . . . . . . Parts Attached 127 | 6 5 1 4 6 13 21 15 9 3 1 11 1 7 24 Power 18 | 1 1 . 1 1 2 3 2 1 . . 2 . . 4 Engine 10 | 1 1 . 1 1 1 3 . 1 . . . . . 1 Core 5 | . . . . . 1 . 2 . . . . . . 2 Reactor 3 | . . . . . . . . . . . 2 . . 1 Propulsion 17 | 2 . 1 1 1 3 5 1 . . . . . . 3 Treads 8 | 2 . . 1 . 2 . . . . . . . . 3 Leg . | . . . . . . . . . . . . . . . Wheel 6 | . . 1 . 1 1 2 1 . . . . . . . Hover 1 | . . . . . . 1 . . . . . . . . Flight 2 | . . . . . . 2 . . . . . . . . Utility 57 | 1 2 . . 2 8 10 6 5 1 1 7 1 3 10 Device 28 | . 1 . . . 4 7 2 2 1 . 3 1 . 7 Storage 3 | 1 1 . . . . 1 . . . . . . . . Processor 11 | . . . . 2 1 . 2 1 . . 2 . 2 1 Hackware 3 | . . . . . 2 . . . . . . . 1 . Protection 12 | . . . . . 1 2 2 2 . 1 2 . . 2 Artifact . | . . . . . . . . . . . . . . . Weapon 35 | 2 2 . 2 2 . 3 6 3 2 . 2 . 4 7 Energy Gun 9 | 1 . . . . . . 2 1 . . . . 1 4 Energy Cannon 6 | . 1 . 1 1 . 1 1 . . . . . 1 . Ballistic Gun 11 | 1 . . 1 . . 1 2 2 1 . 1 . . 2 Ballistic Cannon 3 | . 1 . . . . 1 . . . . . . 1 . Launcher 1 | . . . . . . . . . . . . . . 1 Special Weapon 2 | . . . . . . . 1 . . . . . 1 . Impact Weapon 1 | . . . . 1 . . . . . . . . . . Slashing Weapon 1 | . . . . . . . . . 1 . . . . . Piercing Weapon 1 | . . . . . . . . . . . 1 . . . Special Melee Weapon . | . . . . . . . . . . . . . . . Unidentified Prototypes 18 | . . . . . . . 2 1 . . 9 . 2 4 Corrupted Parts 8 | . . . . . . 7 . . . . . . . 1 System Corruption 36 | . . . . . . 34 . . . . . . . 2 Parts Lost 47 | . 1 5 . . 12 4 . 2 1 1 . . . 21 Power 7 | . 1 1 . . 3 . . . . . . . . 2 Propulsion 9 | . . 2 . . 6 . . . . . . . . 1 Utility 16 | . . . . . 2 3 . 1 . 1 . . . 9 Weapon 15 | . . 2 . . 1 1 . 1 1 . . . . 9 Highest Loss Streak 19 | . 1 4 . . 6 4 . 1 1 1 . . . 19 To Critical Strikes 1 | . . 1 . . . . . . . . . . . . Average Backups 15 | 1 10 16 14 12 15 4 19 21 20 21 22 23 21 17 Power 1 | . 1 1 . . 1 . 3 3 3 3 3 3 3 2 Propulsion 1 | . 1 2 1 1 2 . 2 . . . . . . . Utility 9 | . 2 6 6 6 8 2 10 14 15 14 15 17 15 9 Weapon 2 | . 4 7 5 2 . . 1 1 1 3 2 2 2 5 Tool/Special . | . . . . . . . . . . . . . . . Unused Backups 31 | . . . . 4 8 . 6 3 . . . 1 2 7 Power 3 | . . . . 1 . . 1 1 . . . . . . Propulsion 5 | . . . . . 1 . 2 2 . . . . . . Utility 19 | . . . . . 6 . 3 . . . . 1 2 7 Weapon 3 | . . . . 3 . . . . . . . . . . Tool/Special 1 | . . . . . 1 . . . . . . . . . Average Slot Usage (%) 76 | . 97 82 95 68 69 38 87 88 86 84 80 84 84 66 Engine 6 | . 12 1 12 8 4 4 10 10 10 10 7 . . . Core 1 | . . . . . . . . 5 5 5 3 . . . Reactor 1 | . . . . . . . . . . . 2 10 9 6 Treads 5 | . 28 26 12 4 5 . . . . . . . . . Wheel 5 | . . . 14 17 6 2 5 5 5 5 5 5 4 3 Device 13 | . 13 14 14 4 13 12 23 21 16 15 15 15 14 12 Storage 6 | . 14 14 14 11 5 . 5 5 5 5 5 5 4 3 Processor 9 | . . . . 4 11 6 10 10 15 15 14 15 19 13 Protection 5 | . . . . . 3 1 10 9 8 10 10 10 9 6 Energy Gun 2 | . 1 . . . . . 3 8 7 5 5 5 6 4 Energy Cannon 3 | . 12 12 14 9 2 . 1 . . . . . . . Ballistic Gun 7 | . 11 . 12 4 . . 8 11 7 5 6 15 11 8 Peak Build Rating 149 | 6 8 8 8 19 41 55 87 105 105 102 134 134 143 149 Average Rating 62 | 5 7 6 7 9 32 26 77 99 102 101 105 132 140 113 On Entrance 61 | . 6 8 4 8 19 13 55 87 105 101 102 134 133 142 Naked Turns 345 | . . . . 300 . . . . . . . . . 45 Heaviest Build 174 | 12 50 50 49 54 64 146 151 154 152 148 174 171 172 173 Greatest Support 60 | 40 40 40 20 26 40 20 20 20 20 20 20 20 20 60 Greatest Overweight (x) 8 | . 1 2 3 3 5 7 7 7 7 7 8 8 8 8 Average Overweight (x) 3 | . . 1 2 1 1 . 6 7 7 7 7 8 8 3 Largest Inventory Capacity 25 | 8 20 20 20 20 20 25 25 25 25 25 25 25 25 25 Average Capacity 19 | 6 13 20 20 16 19 7 25 25 25 25 25 25 25 20 Most Carried 25 | 3 17 17 15 20 20 10 25 25 25 24 25 25 25 25 Average Carried 16 | 1 10 16 14 13 17 4 20 23 22 23 24 24 23 19 Final Capacity 25 | 8 20 20 20 20 5 25 25 25 25 25 25 25 25 5 Final Carried 25 | 3 17 16 15 20 5 10 25 24 24 24 25 25 23 5 Class Distribution -------------------- 46% | Mutant 42% | Scavenger-Scrapper 5% | Scavenger-Gunner Dominant Class ---------------- Mutant | -10/Materials Mutant | -10/Subcaves Mutant | -9/Recycling Mutant | -9/Scraptown Mutant | -6/Factory Mutant | -6/Extension Scavenger-Scrapper | -5/Factory Scavenger-Scrapper | -4/Factory Scavenger-Scrapper | -4/Upper Caves Scavenger-Scrapper | -4/Upper Caves Scavenger-Scrapper | -4/Warlord Scavenger-Scrapper | -3/Proximity Caves Scavenger-Gunner | -3/Research Scavenger-Scrapper | -3/Testing Resources | -11 -10 -10 -9 -9 -6 -6 -5 -4 -4 -4 -4 -3 -3 -3 ----------- Run | Yrd Mat Sub Rec Scr Fac Ext Fac Fac Upp Upp War Pro Res Tes Matter Collected 4181 | 224 251 86 . 151 32 1161 303 462 168 39 154 229 182 739 Remotely . | . . . . . . . . . . . . . . . Salvage Created 5933 | . 389 61 53 . 336 . 803 955 390 170 19 539 309 1909 Parts 305 | . 28 5 3 . 7 . 34 46 23 6 1 22 21 109 Haulers Intercepted 3 | . 1 . . . . . 1 . . . . . . 1 Recyclers Shooed 1 | . . . . . 1 . . . . . . . . . Parts Field Recycled . | . . . . . . . . . . . . . . . Retrieved Matter . | . . . . . . . . . . . . . . . Parts Self-Destructed 58 | . . 12 . . . . . . 23 3 . 20 . . Prevented . | . . . . . . . . . . . . . . . Kills | -11 -10 -10 -9 -9 -6 -6 -5 -4 -4 -4 -4 -3 -3 -3 ------- Run | Yrd Mat Sub Rec Scr Fac Ext Fac Fac Upp Upp War Pro Res Tes Combat Hostiles Destroyed 72 | . 11 3 1 . 1 . 7 10 7 2 1 8 3 18 Melee 1 | . . . . . . . . . . . . . . 1 Guns 56 | . 3 . 1 . . . 6 10 6 1 1 8 3 17 Cannons 13 | . 8 3 . . 1 . 1 . . . . . . . Classes Destroyed 20 | . 5 1 1 . 2 . 4 1 . . . 1 1 4 Worker 1 | . . . . . . . . . . . . . 1 . Builder 4 | . . . . . 1 . . . . . . . 1 2 Tunneler 1 | . . . . . . . 1 . . . . . . . Hauler 3 | . 1 . . . . . 1 . . . . . . 1 Recycler 3 | . . . . . 2 . 1 . . . . . . . Carrier 1 | . . . . . . . . 1 . . . . . . Minesweeper 1 | . . . . . . . . . . . . 1 . . Operator 3 | . 2 . . . . . . 1 . . . . . . Turret 2 | . . 2 . . . . . . . . . . . . Watcher 2 | . 1 . . . . . . . . . . . . 1 Swarmer 19 | . 6 3 . . . . . 1 4 . 1 3 . 1 Grunt 31 | . 5 . . . . . 3 6 3 . . 4 . 10 Brawler 2 | . . . . . . . . . . . . . . 2 Researcher 3 | . . . . . . . . . . . . . . 3 Sentry 7 | . . . 1 . 1 . 1 2 . . . 1 1 . Hunter 4 | . . . . . . . 1 . . 2 . . 1 . Programmer 6 | . . . . . . . 2 1 . . . . 1 2 Striker 2 | . . . . . . . . . . . . . . 2 Alpha 7 1 | . . . . . . . . . . . . . . 1 Scrapoid 2 | . . . . . . . 1 . . . . . . 1 Best Kill Streak 6 | . 4 3 1 . 1 . 2 5 4 2 1 5 2 6 Combat Bots Only 6 | . 4 3 1 . 1 . 2 5 4 2 1 5 2 6 Max Kills in Single Turn 2 | . 2 1 1 . 1 . 2 2 1 1 1 2 2 2 Gunslinging 1 | . . . . . . . 1 . . . . 1 . . Exploded . | . . . . . . . . . . . . . . . Melee 1 | . . . . . . . . . . . . . . 1 Uniques/NPCs Destroyed . | . . . . . . . . . . . . . . . Combat | -11 -10 -10 -9 -9 -6 -6 -5 -4 -4 -4 -4 -3 -3 -3 -------- Run | Yrd Mat Sub Rec Scr Fac Ext Fac Fac Upp Upp War Pro Res Tes Hostile Shots Fired 1078 | . 75 221 6 . 187 95 16 64 43 30 . 21 12 308 Missed 372 | . 26 90 3 . 67 39 8 17 13 9 . 10 3 87 Hits 706 | . 49 131 3 . 120 56 8 47 30 21 . 11 9 221 Melee 18 | . . . . . . . . . . . . . . 18 Projectile 688 | . 49 131 3 . 120 56 8 47 30 21 . 11 9 203 AOE 7 | . . . . . 1 1 . . . . 1 . . 4 Critical Strikes 27 | . 1 1 . . 2 1 . 3 . 1 . . 1 17 Damage Taken 10495 | . 455 462 46 . 1351 632 213 989 545 365 119 248 223 4847 Core 2564 | . 70 132 . . 325 517 43 37 19 . 49 70 . 1302 Absorbed by Shields 65 | . . . . . . 65 . . . . . . . . Redirected to Shielding 107 | . . . . . . . . . . . . . . 107 Regen/Repaired (Parts) 475 | . . . . . . . 2 135 49 40 151 36 44 18 Core Remaining (%) 59 | 100 . . . 19 . . 95 . . . . 84 . . Volleys Fired 248 | . 50 18 3 . 3 . 22 31 19 7 1 17 15 62 Largest 4 | . 2 2 2 . 1 . 3 4 3 2 4 4 4 4 Hottest 440 | . 90 90 80 . 80 . 164 264 165 132 200 200 287 440 Shots Fired 696 | . 100 35 6 . 3 . 59 117 49 14 4 64 47 198 Gun 586 | . 47 . 3 . . . 46 116 49 14 4 64 45 198 Cannon 106 | . 53 35 3 . 3 . 12 . . . . . . . Launcher . | . . . . . . . . . . . . . . . Special 4 | . . . . . . . 1 1 . . . . 2 . Kinetic 450 | . 50 18 3 . . . 40 77 30 7 3 47 27 148 Thermal 242 | . 50 17 3 . 3 . 18 39 19 7 1 17 18 50 Explosive . | . . . . . . . . . . . . . . . Electromagnetic . | . . . . . . . . . . . . . . . Robot Hit Streak 21 | . 10 6 6 . 9 . 12 7 7 16 18 20 20 21 Robot Miss Streak 7 | . 4 3 . . . . 3 5 7 . . 5 1 4 Penetration Max 3 | . . . . . . . . 1 1 . . 1 2 3 Secondary Targets 16 | . . . . . . . 1 5 2 . . 1 . 7 Max Gunslinging Chain 1 | . . . . . . . 1 1 1 . . 1 . 1 Shots Hit Robots 424 | . 48 18 6 . 16 3 27 65 26 14 2 28 30 141 Core Hits 196 | . 17 7 2 . 5 . 17 29 11 4 1 18 12 73 Critical Kills 14 | . . . . . . . 1 1 . 1 . 2 2 7 Critical Parts Destroyed 18 | . . . . . 1 1 3 2 2 . . . 1 8 Critical Strikes 50 | . 1 . . . 1 1 5 6 5 4 . 4 5 18 Burn 12 | . . . . . . . . 3 3 3 . 1 1 1 Destroy 34 | . . . . . . . 4 3 2 1 . 3 4 17 Blast 2 | . 1 . . . . . 1 . . . . . . . Smash 2 | . . . . . 1 1 . . . . . . . . Melee Attacks 22 | . . . . . 18 3 . . . . 1 . . . Impact 21 | . . . . . 18 3 . . . . . . . . Slashing . | . . . . . . . . . . . . . . . Piercing . | . . . . . . . . . . . . . . . Entropic 1 | . . . . . . . . . . . 1 . . . Sneak Attacks 3 | . . . . . 3 . . . . . . . . . Combat Hostiles . | . . . . . . . . . . . . . . . Follow-up Attacks . | . . . . . . . . . . . . . . . Damage Inflicted 10623 | . 764 303 92 . 432 77 769 1875 752 321 47 651 620 3920 Guns 8985 | . 258 . 40 . . . 535 1875 752 321 47 651 620 3886 Cannons 1171 | . 506 303 52 . 76 . 234 . . . . . . . Explosions . | . . . . . . . . . . . . . . . Melee 403 | . . . . . 356 47 . . . . . . . . Ramming 64 | . . . . . . 30 . . . . . . . 34 Kinetic 6566 | . 294 147 40 . . . 564 1268 505 130 21 431 381 2785 Thermal 3590 | . 470 156 52 . 76 . 205 607 247 191 26 220 239 1101 Explosive . | . . . . . . . . . . . . . . . Electromagnetic . | . . . . . . . . . . . . . . . Impact 403 | . . . . . 356 47 . . . . . . . . Slashing . | . . . . . . . . . . . . . . . Piercing . | . . . . . . . . . . . . . . . Highest Corruption 47 | . . . . . 7 47 2 2 2 2 2 . 1 31 Average Corruption 8 | . . . . . 5 16 2 1 2 2 2 . 1 7 Corruption Purged . | . . . . . . . . . . . . . . . Corruption Blocked . | . . . . . . . . . . . . . . . Effects 99 | . . . . . 1 58 . 8 11 7 . . . 14 Message Errors 21 | . . . . . . 14 . 3 2 2 . . . . Matter Fused 23 | . . . . . . 16 . . 3 1 . . . 3 Heat Flow Errors 13 | . . . . . . 4 . 2 2 . . . . 5 Energy Discharges 10 | . . . . . 1 4 . 1 1 2 . . . 1 Parts Rejected 1 | . . . . . . . . . . . . . . 1 Parts Fused 1 | . . . . . . . . . . 1 . . . . Data Loss (minor) 9 | . . . . . . 6 . 1 1 . . . . 1 Data Loss (major) 7 | . . . . . . 5 . . 1 1 . . . . Alerts 3 | . . . . . . 2 . . 1 . . . . . Misdirections 9 | . . . . . . 7 . . . . . . . 2 Weapon Failures 2 | . . . . . . . . 1 . . . . . 1 Overload Shots . | . . . . . . . . . . . . . . . Overflow Damage 85 | . 14 . . . 59 12 . . . . . . . . Projectiles 14 | . 14 . . . . . . . . . . . . . Explosions . | . . . . . . . . . . . . . . . Melee 71 | . . . . . 59 12 . . . . . . . . Knockbacks 6 | . 1 1 . . 3 1 . . . . . . . . Impact 4 | . . . . . 3 1 . . . . . . . . Kinetic 2 | . 1 1 . . . . . . . . . . . . Secondary . | . . . . . . . . . . . . . . . Self-Inflicted Damage 27 | . . . . . . 12 . . . . . . . 15 Shots . | . . . . . . . . . . . . . . . Rammed 15 | . . . . . . 9 . . . . . . . 6 Targets Rammed 16 | . . . . . . 9 . . . . . . . 7 Kicked . | . . . . . . . . . . . . . . . Crushed 1 | . . . . . . . . . . . . . . 1 Highest Temperature 473 | . 6 . 5 . 48 218 157 366 206 198 118 198 234 473 Average Temperature 110 | . 3 . 3 . 25 97 44 133 119 130 72 103 93 136 Received Heat Transfer 1862 | . 123 144 9 . 267 206 45 225 90 . . 36 18 699 Effects 7 | . . . . . . . . 1 . . . . . 6 Shutdowns 2 | . . . . . . . . 1 . . . . . 1 Interference 5 | . . . . . . . . . . . . . . 5 Siege Activations . | . . . . . . . . . . . . . . . Martial Activations . | . . . . . . . . . . . . . . . Shielding Activations . | . . . . . . . . . . . . . . . Robots Disrupted . | . . . . . . . . . . . . . . . Combat Hostiles . | . . . . . . . . . . . . . . . Robots Corrupted 2 | . . . . . 2 . . . . . . . . . Combat Hostiles . | . . . . . . . . . . . . . . . Parts Fried 4 | . . . . . 4 . . . . . . . . . Impact Corruptions 4 | . . . . . 3 1 . . . . . . . . Robots Melted 2 | . . . . . . . . . 1 1 . . . . Combat Hostiles 2 | . . . . . . . . . 1 1 . . . . Parts Melted 28 | . 1 . . . . . . 7 4 7 . . 8 1 Heat Transferred 7567 | . 999 333 111 . 150 . 324 1350 750 650 50 500 500 1850 Parts Sabotaged 2 | . . . . . . . . . . . . . . 2 Parts Stolen . | . . . . . . . . . . . . . . . Parts Stripped . | . . . . . . . . . . . . . . . Power Chain Reactions . | . . . . . . . . . . . . . . . Alert | -11 -10 -10 -9 -9 -6 -6 -5 -4 -4 -4 -4 -3 -3 -3 ------- Run | Yrd Mat Sub Rec Scr Fac Ext Fac Fac Upp Upp War Pro Res Tes Maximum Alert Level 3 | . . . . . . 1 3 3 . . . . 1 3 Low Security (%) 64 | 100 100 . 100 . 100 97 28 . . . . . 69 1 Level 1 9 | . . . . . . 2 20 10 . . . . 30 18 Level 2 21 | . . . . . . . 50 57 . . . . . 62 Level 3 5 | . . . . . . . . 32 . . . . . 17 Level 4 . | . . . . . . . . . . . . . . . Level 5 . | . . . . . . . . . . . . . . . High Security . | . . . . . . . . . . . . . . . Max Security . | . . . . . . . . . . . . . . . Peak Influence 902 | . 93 . 48 . 30 209 729 757 . . . . 339 902 Initial 354 | . . . 28 . . . 70 354 . . . . 24 171 Average 207 | . 32 . 27 . 2 48 371 619 . . . . 117 521 Influence Increases 5243 | . 341 250 20 . 73 507 1109 703 190 50 35 175 495 1295 Destroy 0b10 Robot/C 2460 | . 220 100 20 . 20 200 440 340 140 40 20 160 220 540 Destroy 0b10 Robot/NC 120 | . 20 . . . 15 15 15 10 . . . 5 20 20 Destroy Leader 410 | . 54 . . . 10 32 82 80 20 10 . 10 70 42 Allied During Kill 734 | . . . . . . 90 367 70 . . . . 125 82 Trap Triggered on 0b10 10 | . . . . . 10 . . . . . . . . . Successful Hack 33 | . . . . . . . 2 31 . . . . . . Disable Machine 210 | . 30 . . . 15 . 75 75 . . . . . 15 Anti-Garrison Action 150 | . . . . . . . . . . . . . . 150 Destroy Structure 396 | . 2 . . . 3 5 128 82 . . . . 60 116 Partial Spotted 45 | . . . . . . 30 . . . . . . . 15 Lose Combat Pursuer 675 | . 15 150 . . . 135 . 15 30 . 15 . . 315 Influence Decreases 4341 | . 341 190 72 8 73 362 531 719 551 299 109 162 226 698 Entered New Map 1080 | . . . 32 8 . . 75 369 263 67 97 23 12 134 Time Decay 2579 | . 331 140 40 . 56 307 376 230 278 222 12 139 154 294 Lost Part 327 | . 10 50 . . 17 . . 20 10 10 . . . 210 Lost Ally 355 | . . . . . . 55 80 100 . . . . 60 60 Squads Dispatched 34 | . 2 . . . 2 . 8 2 . . . . 7 13 Investigation 7 | . . . . . . . 3 . . . . . 2 2 Extermination 5 | . . . . . 1 . 1 1 . . . . 1 1 Reinforcement 15 | . 2 . . . 1 . 3 . . . . . 2 7 Assault 3 | . . . . . . . 1 . . . . . . 2 Garrison 4 | . . . . . . . . 1 . . . . 2 1 Intercept . | . . . . . . . . . . . . . . . Searches Triggered . | . . . . . . . . . . . . . . . Construction Impeded 2 | . . . . . . . . . . . . . 1 1 Haulers Reinforced 3 | . . . . . . . 2 . . . . . . 1 Active Scanning Responses . | . . . . . . . . . . . . . . . Cargo Convoy Interrupts . | . . . . . . . . . . . . . . . Stealth | -11 -10 -10 -9 -9 -6 -6 -5 -4 -4 -4 -4 -3 -3 -3 --------- Run | Yrd Mat Sub Rec Scr Fac Ext Fac Fac Upp Upp War Pro Res Tes Distress Signals 15 | . 2 . . . 1 5 2 . . . . . 2 3 Communications Jammed . | . . . . . . . . . . . . . . . Distress Signals . | . . . . . . . . . . . . . . . Times Spotted 222 | . 24 8 1 . 12 17 23 16 9 2 25 8 15 62 Peak Tracking Total 17 | . 5 6 1 . 6 4 4 10 5 2 9 5 5 17 Tactical Retreats 25 | . 1 7 . . . 8 . 1 2 . 1 . . 5 Traps | -11 -10 -10 -9 -9 -6 -6 -5 -4 -4 -4 -4 -3 -3 -3 ------- Run | Yrd Mat Sub Rec Scr Fac Ext Fac Fac Upp Upp War Pro Res Tes Traps Triggered 9 | . . . . . . 7 . . . . . . . 2 Indirectly . | . . . . . . . . . . . . . . . Trap Hack Attempts . | . . . . . . . . . . . . . . . Triggered . | . . . . . . . . . . . . . . . Disarmed . | . . . . . . . . . . . . . . . Reprogrammed . | . . . . . . . . . . . . . . . Reused 1 | . . . . . 1 . . . . . . . . . Traps Extracted . | . . . . . . . . . . . . . . . Installed 1 | . . . . . 1 . . . . . . . . . Triggered 1 | . . . . . 1 . . . . . . . . . Most Traps Carried 2 | . . . . 2 1 . . . . . . . . . Machines | -11 -10 -10 -9 -9 -6 -6 -5 -4 -4 -4 -4 -3 -3 -3 ---------- Run | Yrd Mat Sub Rec Scr Fac Ext Fac Fac Upp Upp War Pro Res Tes Machines Disabled 19 | . 3 2 . . 1 . 5 5 . . 1 . . 2 Max in Single Turn 1 | . 1 1 . . 1 . 1 1 . . 1 . . 1 Garrison Access 2 | . . . . . 1 . . . . . . . . 1 Energy Cycler 2 | . . . . . . 2 . . . . . . . . Machines Repaired . | . . . . . . . . . . . . . . . Machines Dismantled . | . . . . . . . . . . . . . . . Machines Sabotaged . | . . . . . . . . . . . . . . . Overloaded Fab Kills . | . . . . . . . . . . . . . . . Hacking | -11 -10 -10 -9 -9 -6 -6 -5 -4 -4 -4 -4 -3 -3 -3 --------- Run | Yrd Mat Sub Rec Scr Fac Ext Fac Fac Upp Upp War Pro Res Tes Machines Accessed 15 | . . . . 2 1 . 3 3 . . 4 . 2 . Terminals 2 | . . . . . . . . 2 . . . . . . Fabricators . | . . . . . . . . . . . . . . . Repair Stations . | . . . . . . . . . . . . . . . Recycling Units 5 | . . . . . . . 3 . . . . . 2 . Scanalyzers . | . . . . . . . . . . . . . . . Garrison Access 2 | . . . . . 1 . . 1 . . . . . . Total Hacks 38 | . . . . 19 1 . 5 4 . . 7 . 2 . Successful 35 | . . . . 19 1 . 4 2 . . 7 . 2 . Failed 3 | . . . . . . . 1 2 . . . . . . Catastrophic 1 | . . . . . . . . 1 . . . . . . Database Lockouts . | . . . . . . . . . . . . . . . Manual 9 | . . . . . . . 5 2 . . . . 2 . Terminals 3 | . . . . . . . . 3 . . . . . . Fabricators . | . . . . . . . . . . . . . . . Repair Stations . | . . . . . . . . . . . . . . . Recycling Units 7 | . . . . . . . 5 . . . . . 2 . Scanalyzers . | . . . . . . . . . . . . . . . Garrison Access 2 | . . . . . 1 . . 1 . . . . . . Terminal Hacks 27 | . . . . 19 . . . 1 . . 7 . . . Record 25 | . . . . 19 . . . . . . 6 . . . Open Door 1 | . . . . . . . . . . . 1 . . . Branch Access Points 1 | . . . . . . . . 1 . . . . . . Fabricator Hacks . | . . . . . . . . . . . . . . . Repair Station Hacks . | . . . . . . . . . . . . . . . Recycling Unit Hacks . | . . . . . . . . . . . . . . . Scanalyzer . | . . . . . . . . . . . . . . . Garrison Access Hacks 1 | . . . . . 1 . . . . . . . . . Seal Access 1 | . . . . . 1 . . . . . . . . . Unauthorized Hacks 6 | . . . . . . . 3 1 . . . . 2 . Terminals 1 | . . . . . . . . 1 . . . . . . Skim 1 | . . . . . . . . 1 . . . . . . Fabricators . | . . . . . . . . . . . . . . . Repair Stations . | . . . . . . . . . . . . . . . Recycling Units 5 | . . . . . . . 3 . . . . . 2 . Fedlink 2 | . . . . . . . 2 . . . . . . . Scrapoids 3 | . . . . . . . 1 . . . . . 2 . Scanalyzers . | . . . . . . . . . . . . . . . Garrison Access . | . . . . . . . . . . . . . . . Data Cores Recovered 1 | . 1 . . . . . . . . . . . . . Used . | . . . . . . . . . . . . . . . Hacking Detections 3 | . . . . . . . 1 2 . . . . . . Full Trace Events . | . . . . . . . . . . . . . . . Feedback Events . | . . . . . . . . . . . . . . . Feedback Blocked . | . . . . . . . . . . . . . . . Robot Schematics Acquired . | . . . . . . . . . . . . . . . Robots Built . | . . . . . . . . . . . . . . . Authchips . | . . . . . . . . . . . . . . . Time . | . . . . . . . . . . . . . . . Total Robot Build Rating . | . . . . . . . . . . . . . . . Part Schematics Acquired 4 | . . . . . . . . . . . . . . 4 Parts Built . | . . . . . . . . . . . . . . . Authchips . | . . . . . . . . . . . . . . . Time . | . . . . . . . . . . . . . . . Total Part Build Rating . | . . . . . . . . . . . . . . . Parts Repaired . | . . . . . . . . . . . . . . . Time . | . . . . . . . . . . . . . . . Parts Recycled . | . . . . . . . . . . . . . . . Recycled Matter . | . . . . . . . . . . . . . . . Retrieved Matter . | . . . . . . . . . . . . . . . Retrieved Components . | . . . . . . . . . . . . . . . Parts Scanalyzed . | . . . . . . . . . . . . . . . Part Schematics Acquired . | . . . . . . . . . . . . . . . Parts Damaged . | . . . . . . . . . . . . . . . Bothacking | -11 -10 -10 -9 -9 -6 -6 -5 -4 -4 -4 -4 -3 -3 -3 ------------ Run | Yrd Mat Sub Rec Scr Fac Ext Fac Fac Upp Upp War Pro Res Tes Used RIF Installer . | . . . . . . . . . . . . . . . Robots Hacked . | . . . . . . . . . . . . . . . Non-combat . | . . . . . . . . . . . . . . . Combat . | . . . . . . . . . . . . . . . Robot Hacks Applied . | . . . . . . . . . . . . . . . Relay Couplers Released 2 | . . . . . . . . . . . . . . 2 Machine Destruction 2 | . . . . . . . . . . . . . . 2 Fabnet Peak Effective % . | . . . . . . . . . . . . . . . Robots Rewired 1 | . . . . . . . . 1 . . . . . . Allies Hacked 2 | . . . . . . . . 1 . . . . . 1 Hacks Repelled . | . . . . . . . . . . . . . . . Allies | -11 -10 -10 -9 -9 -6 -6 -5 -4 -4 -4 -4 -3 -3 -3 -------- Run | Yrd Mat Sub Rec Scr Fac Ext Fac Fac Upp Upp War Pro Res Tes Total Allies 27 | . . . . . . 11 5 1 . . . . 10 . Largest Group 9 | . . . . . . 5 9 4 . . . . 7 5 Highest-Rated Group 451 | . . . . . . 235 429 190 . . . . 451 323 Highest-Rated Ally 67 | . . . . . . 47 50 49 . . . . 67 67 Total Orders . | . . . . . . . . . . . . . . . Ally Attacks 341 | . . . . . . 52 115 36 . . . . 82 56 Total Damage 7427 | . . . . . . 1067 2465 793 . . . . 2071 1031 Kills 55 | . . . . . . 14 16 7 . . . . 10 8 Allies Corrupted . | . . . . . . . . . . . . . . . Allies Melted 1 | . . . . . . 1 . . . . . . . . Intel | -11 -10 -10 -9 -9 -6 -6 -5 -4 -4 -4 -4 -3 -3 -3 ------- Run | Yrd Mat Sub Rec Scr Fac Ext Fac Fac Upp Upp War Pro Res Tes Active Infowar (turns) 4133 | . . . . 116 326 124 . 91 605 475 830 663 428 475 Optics 4009 | . . . . 116 326 . . 91 605 475 830 663 428 475 Sensors 124 | . . . . . . 124 . . . . . . . . Structural 222 | . . . . . 222 . . . . . . . . . Seismic 89 | . . . . . . . . . . . . 89 . . Robot Analysis Total . | . . . . . . . . . . . . . . . Derelict Logs Recovered 4 | . . . . . . . . . 3 1 . . . . Drone Launches . | . . . . . . . . . . . . . . . Drone Recoveries . | . . . . . . . . . . . . . . . Exploration | -11 -10 -10 -9 -9 -6 -6 -5 -4 -4 -4 -4 -3 -3 -3 ------------- Run | Yrd Mat Sub Rec Scr Fac Ext Fac Fac Upp Upp War Pro Res Tes Turns Passed 9804 | 89 1118 284 92 1483 407 1268 921 489 605 475 830 663 428 652 Spaces Moved 6691 | 49 406 69 52 1549 225 1145 569 286 399 328 554 375 248 437 Core 1337 | 1 . . . 594 30 493 . . . . . . . 219 Treads 562 | 48 406 59 1 . 46 . . . . . . . . 2 Legs . | . . . . . . . . . . . . . . . Wheels 4254 | . . 10 51 955 149 114 569 286 399 328 554 375 248 216 Hover 441 | . . . . . . 441 . . . . . . . . Flight 97 | . . . . . . 97 . . . . . . . . Fastest Speed 32 | 50 160 130 145 50 50 32 130 140 140 140 140 150 150 50 Average Speed 119 | 157 192 224 148 93 137 63 142 140 140 140 143 150 150 99 Slowest Speed 320 | 160 240 240 320 145 240 185 185 140 140 140 150 150 150 150 Overloaded Moves . | . . . . . . . . . . . . . . . Propulsion Burnouts . | . . . . . . . . . . . . . . . Robots Hopped . | . . . . . . . . . . . . . . . Potential Cave-ins 1 | . . . . . . . . . 1 . . . . . Cave-ins Triggered . | . . . . . . . . . . . . . . . Exploration Rate (%) 40 | 4 82 4 10 84 9 54 11 10 76 53 83 61 9 62 Regions Visited 14 Branch Regions 9 Pre-discovered Areas 6 | . . . . 5 . . . . . 1 . . . . Known Exits Taken 7 | . . . . . 1 1 . 1 1 . 1 1 1 . Unknown Exits Taken 7 | 1 1 1 1 1 . . 1 . . 1 . . . . Scrap Searched 9 | . . . . 3 . . . . 3 2 . 1 . . Spaces Dug 12 | . . . . . 3 . 5 3 . . . . 1 . Terrain Destroyed 184 | . . . . . 3 . 28 30 24 6 1 17 6 69 Melee 3 | . . . . . 3 . . . . . . . . . Projectile 179 | . . . . . . . 28 29 24 6 1 17 6 68 AOE . | . . . . . . . . . . . . . . . Terrain Rammed . | . . . . . . . . . . . . . . . Walls Destroyed . | . . . . . . . . . . . . . . . Machines Disabled . | . . . . . . . . . . . . . . . Actions | -11 -10 -10 -9 -9 -6 -6 -5 -4 -4 -4 -4 -3 -3 -3 --------- Run | Yrd Mat Sub Rec Scr Fac Ext Fac Fac Upp Upp War Pro Res Tes Total 8150 | 58 642 163 61 1589 290 1670 657 350 429 337 587 450 289 578 Wait 732 | 1 168 76 . . 11 388 3 5 2 1 . 55 8 14 Move 6677 | 48 405 68 51 1548 224 1144 568 285 398 327 553 374 247 437 Hop . | . . . . . . . . . . . . . . . Pick Up 114 | 3 14 . 3 24 8 7 24 8 2 1 4 1 4 11 Fast Attach 72 | 6 2 . . 7 5 19 7 3 . . 11 . 3 9 Attach 59 | . . 1 4 1 9 2 7 6 2 1 2 . 3 21 Detach 8 | . . . . . 1 1 4 . 2 . . . . . Swap 21 | . 3 . . . 2 . 4 2 2 . 1 2 1 4 Drop 82 | . . . . 9 8 4 18 8 2 . 14 1 8 10 Fire 248 | . 50 18 3 . 3 . 22 31 19 7 1 17 15 62 Melee 22 | . . . . . 18 3 . . . . 1 . . . Ram 13 | . . . . . . 9 . . . . . . . 4 Kick . | . . . . . . . . . . . . . . . Crush 3 | . . . . . . . . . . . . . . 3 Escape Stasis 96 | . . . . . . 93 . . . . . . . 3 Rewire 2 | . . . . . . . . 2 . . . . . . Trap 1 | . . . . . 1 . . . . . . . . . Miscellaneous . | . . . . . . . . . . . . . . . Route ------- -11/Scrapyard -10/Materials (discovered 5 exits: [*Mat x2] / [*Min x2] / [*Sub]) -10/Subcaves -9/Recycling -9/Scraptown (discovered 2 exits: *Fac x2) -6/Factory (discovered 8 exits: Fac x4 / Low x2 / *Ext x2) -6/Extension -5/Factory (discovered 2 exits: *Fac / [*Upp]) -4/Factory (discovered 3 exits: *Upp x2 / Arm) -4/Upper Caves -4/Upper Caves -4/Warlord -3/Proximity Caves -3/Research (discovered 2 exits: Res / *Tes) -3/Testing History --------- Turn | Location | Event 39 | -11/Scrapyard | Discovered new exit (range 16) 90 | -11/Scrapyard | Entered Materials 303 | -10/Materials | Build established: Mutant 336 | -10/Materials | Discovered new exit (range 16) 349 | -10/Materials | Discovered new exit (range 9) 735 | -10/Materials | Discovered new exit (range 6) 1078 | -10/Materials | Discovered new exit (range 16) 1177 | -10/Materials | Discovered new exit (range 7) 1208 | -10/Materials | Entered Subcaves 1209 | -10/Subcaves | Approached by a straggling Scientist 1358 | -10/Subcaves | Discovered new exit (range 10) 1364 | -10/Subcaves | Core integrity fell below 50% 1492 | -10/Subcaves | Entered Recycling 1493 | -9/Recycling | Core integrity fell below 20% 1520 | -9/Recycling | Lost 4 parts (2n2w) 1549 | -9/Recycling | Scanned before Scraplab entrance 1570 | -9/Recycling | Entered Scraplab 1581 | -9/Recycling | Discovered new exit (range 3) 1584 | -9/Recycling | Entered Scraptown 1680 | -9/Scraptown | Visited UFD Registry 1680 | -9/Scraptown | Registered with UFD as "Wiremod" 1729 | -9/Scraptown | Visited Cartography Club 1869 | -9/Scraptown | Visited Scrapoid Research Area 1890 | -9/Scraptown | Visited Science Guys 1925 | -9/Scraptown | Visited Abandonware Association 1941 | -9/Scraptown | Learned abandonware demo "POISON.EXE" 1979 | -9/Scraptown | Visited Scrapoid Pod Storage 1986 | -9/Scraptown | Found Scrapoid Pod 2042 | -9/Scraptown | Visited Science Testing Area 2070 | -9/Scraptown | Released all parts (7) 2115 | -9/Scraptown | Found Deep Structural Scanner 2121 | -9/Scraptown | Learned location of Recycling (-9) 2121 | -9/Scraptown | Learned location of Upper Caves (-4) 2121 | -9/Scraptown | Learned 12 Materials zone layouts 2121 | -9/Scraptown | Learned 12 Factory zone layouts 2121 | -9/Scraptown | Learned 16 Factory zone layouts 2121 | -9/Scraptown | Learned 20 Factory zone layouts 2121 | -9/Scraptown | Learned 12 Research zone layouts 2121 | -9/Scraptown | Learned 8 Lower Caves zone layouts 2121 | -9/Scraptown | Learned Storage emergency access door positions 2121 | -9/Scraptown | Learned location of 2 exits from Factory 2121 | -9/Scraptown | Learned location of 3 exits from Proximity Caves 2143 | -9/Scraptown | Visited Supply Room 2166 | -9/Scraptown | Visited Curators Association 2250 | -9/Scraptown | Visited Fellowship of the Rings 2258 | -9/Scraptown | Visited Cyclists 2263 | -9/Scraptown | Visited Spacefarers 2287 | -9/Scraptown | Visited Red Mages 2296 | -9/Scraptown | Visited Shadow of the Wyrm 2300 | -9/Scraptown | Visited Symbiants 2319 | -9/Scraptown | Discovered new exit (range 11) 2975 | -9/Scraptown | Visited Scrap Suit Storage 2979 | -9/Scraptown | Found Scrap Suit 3062 | -9/Scraptown | Discovered new exit (range 3) 3067 | -9/Scraptown | Entered Factory 3067 | -6/Factory | Evolved 8 slots: Power x1, Utility x6, Weapon x1 3068 | -6/Factory | Identified exit to Lower Caves 3069 | -6/Factory | Identified exit to Factory 3070 | -6/Factory | Identified exit to Extension 3154 | -6/Factory | Spotted B-75 Beast 3404 | -6/Factory | Lost 4 parts (3p1n) 3474 | -6/Factory | Entered Extension 3488 | -6/Extension | Lost 6 parts (4n2u) 3557 | -6/Extension | Spotted B-75 Beast 3644 | -6/Extension | Core integrity fell below 50% 3648 | -6/Extension | System corruption reached 10% 3683 | -6/Extension | Lost 4 parts (3u1w) 3705 | -6/Extension | Core integrity fell below 20% 3716 | -6/Extension | Energy Cycler disabled 3716 | -6/Extension | Rescued a captive Derelict 3716 | -6/Extension | Rescued a captive Derelict 3716 | -6/Extension | Rescued a captive Derelict 3716 | -6/Extension | Rescued a captive Derelict 3716 | -6/Extension | Rescued a captive Derelict 3716 | -6/Extension | Rescued a captive Derelict 3716 | -6/Extension | Rescued a captive Derelict 3717 | -6/Extension | Rescued a captive Derelict 3718 | -6/Extension | Rescued a captive Derelict 3720 | -6/Extension | Rescued a captive Derelict 3722 | -6/Extension | Rescued a captive Derelict 3727 | -6/Extension | Rescued a captive Derelict 4294 | -6/Extension | Scrapoid Pod released 06E07-D (x5) 4505 | -6/Extension | Discovered exit to Factory (range 15) 4510 | -6/Extension | Extracted ID and sensor layout for unrecognized location from A7's data core 4551 | -6/Extension | System corruption reached 30% 4742 | -6/Extension | Entered Factory 4742 | -5/Factory | Accompanied by 5 allies 4742 | -5/Factory | Evolved 2 slots: Utility x2 4837 | -5/Factory | Found Scrap Suit 4901 | -5/Factory | Scrapoids reinforcements arrived? 4998 | -5/Factory | Loaded intel: 7 recycling unit locations 5059 | -5/Factory | Found Scrap Suit 5264 | -5/Factory | Found Scrap Suit 5373 | -5/Factory | Build established: Scavenger-Scrapper 5534 | -5/Factory | Found Scrap Suit 5573 | -5/Factory | Discovered new exit (range 15) 5622 | -5/Factory | Discovered new exit (range 8) 5642 | -5/Factory | First assault squad dispatched 5663 | -5/Factory | Entered another Factory area 5663 | -4/Factory | Accompanied by 4 allies 5663 | -4/Factory | Evolved 2 slots: Power x1, Weapon x1 5776 | -4/Factory | Identified exit to Upper Caves 5776 | -4/Factory | Identified exit to Armory 5827 | -4/Factory | Lost 3 allies 5869 | -4/Factory | Found Scrap Suit 5993 | -4/Factory | Garrison activated, responded to threat 6152 | -4/Factory | Entered Upper Caves 6255 | -4/Upper Caves | Identified exit to Upper Caves 6520 | -4/Upper Caves | Encountered a Warlord checkpoint 6528 | -4/Upper Caves | Entered a destroyed Warlord outpost 6545 | -4/Upper Caves | Learned Research terminal intel 6672 | -4/Upper Caves | Learned Research garrison access intel 6757 | -4/Upper Caves | Entered another Upper Caves area 7211 | -4/Upper Caves | Discovered new exit (range 10) 7232 | -4/Upper Caves | Entered Warlord 7233 | -4/Warlord | Identified exit to Proximity Caves 7283 | -4/Warlord | System corruption cleaned by Quarantine Array 7383 | -4/Warlord | Learned Quarantine trap positions 7384 | -4/Warlord | Learned 4 Access zone layouts 7384 | -4/Warlord | Learned 4 Access zone layouts 7387 | -4/Warlord | Learned Factory terminal intel 7387 | -4/Warlord | Learned Research repair station intel 7485 | -4/Warlord | Rebuked by Warlord 7510 | -4/Warlord | Warlord's base attacked by MAIN.C 7604 | -4/Warlord | Found Prototype Piercing Weapon 7616 | -4/Warlord | Identified Vortex Lance 7732 | -4/Warlord | Found Prototype Reactor 7732 | -4/Warlord | Identified Vortex Chain Reactor 7739 | -4/Warlord | Found Prototype Device 7739 | -4/Warlord | Identified Exp. Phase Shifter 7749 | -4/Warlord | Found Prototype Device 7749 | -4/Warlord | Identified System Purifier 7860 | -4/Warlord | Warlord forces counterattacked 7975 | -4/Warlord | Spotted Striker 7994 | -4/Warlord | Found Prototype Processor 7994 | -4/Warlord | Identified Exp. Core Analyzer 7997 | -4/Warlord | Found Exp. Core Analyzer 8003 | -4/Warlord | Found Prototype Processor 8003 | -4/Warlord | Identified Exp. Targeting Computer 8042 | -4/Warlord | Spotted Striker 8042 | -4/Warlord | Spotted Executioner 8062 | -4/Warlord | Entered Proximity Caves 8063 | -3/Proximity Caves | Identified exit to Research 8086 | -3/Proximity Caves | Lost 15 allies 8139 | -3/Proximity Caves | Spotted B-86 Titan 8573 | -3/Proximity Caves | Attracted the attention of an 0b10 checkpoint 8725 | -3/Proximity Caves | Entered Research 8725 | -3/Research | Evolved 2 slots: Utility x2 8726 | -3/Research | Identified exit to Testing 8726 | -3/Research | Identified exit to Research 8727 | -3/Research | Loaded intel: 23 terminal locations 8728 | -3/Research | Loaded intel: 4 repair station locations 8729 | -3/Research | Loaded intel: 4 garrison access locations 8951 | -3/Research | Scrapoid reinforcements arrived 8984 | -3/Research | Garrison activated, responded to threat 9127 | -3/Research | Scrapoid reinforcements arrived 9153 | -3/Research | Entered Testing 9153 | -3/Testing | Accompanied by 6 allies 9169 | -3/Testing | Found Scrap Suit 9274 | -3/Testing | Scanned by Researcher 9404 | -3/Testing | Found Prototype Device 9415 | -3/Testing | Identified Adv. Kinecellerator 9476 | -3/Testing | Garrison activated, responded to threat 9549 | -3/Testing | Spotted Striker 9549 | -3/Testing | Spotted Striker 9563 | -3/Testing | Spotted Alpha 7 9577 | -3/Testing | Destroyed Striker 9588 | -3/Testing | Destroyed Striker 9614 | -3/Testing | Destroyed Alpha 7 9629 | -3/Testing | System corruption reached 10% 9667 | -3/Testing | Released all parts (15) 9694 | -3/Testing | Core integrity fell below 50% 9699 | -3/Testing | Lost 19 parts (2p1n8u8w) 9759 | -3/Testing | Spotted PD-3SE7CTTYKH 9779 | -3/Testing | Spotted PL-ZW2XFE4FWF 9787 | -3/Testing | Core integrity fell below 20% 9793 | -3/Testing | System corruption reached 30% 9805 | -3/Testing | Destroyed by S-43 Plague with Heavy Machine Gun Last Messages --------------- 09787_ K-01 Serf collects debris. 09788_ System corrupted: Heat flow error (+256). 09790_ Held in stasis. 09790_ C-55 Analyst is analyzing... 09792_ Slug penetrates Wall. 09794_ The unstable cave ceiling collapses. 09794_ Held in stasis. 09794_ C-55 Analyst is analyzing... 09796_ The unstable cave ceiling collapses. 09796_ K-01 Serf collects debris. 09796_ PL-ZW2XFE4FWF springs to life. 09797_ Penetrated by Slug. 09797_ Slug penetrates P-80 Master. 09797_ Drone sends a signal. 09798_ Held in stasis. 09798_ C-55 Analyst is analyzing... 09801_ Crushed S-43 Plague. 09801_ S-43 Plague destroyed. 09802_ Acquired 12 matter. 09803_ Slammed into S-43 Plague. Map ----- +----------------------------------------------------+ | | | | | | | | | | | | | | | | | | | | | | | | | | | | | | | | | | | | | | | | | | | ?????????????????????????????????????????????????? | | ?????????????????????????????????????????????????? | | ?????????????????????????????????????????????????? | | ???????????????????????######????????????????????? | | ???##################??#s@ +????????????????????? | | #### #??#s####????????????????????? | | ########### #??# #???????????????????????? | | ###+##+#?????????# #??#=#???????????????????????? | | #? ?????######## #??# #???????????????????????? | | #? ?????#"" # #?## ##??????????????????????? | | # ! ????#"" # ### #??????????????????????? | | # ????#""" + " #??????????????????????? | | # ???#"""" ## #??????????????????????? | | # ???#""" #####??????????????????????? | | + ??#"" #?????????????????????????? | | # ??### ##########????????????????? | | # ???# #???????????????? | | #########???# "" #???????????????? | | #?????????# """ #???????????????? | | #????????### "" #???????????????? | | #????????# # "" #???????????????? | | #????????# # " #???????????????? | | #????????# / "" #???????????????? | | ] #????????# # """" #???????????????? | | ###??????######/#### """ ????????????????? | | #????????# # ????????????????? | | #????????# """ ""# ?????????????????? | | #????????# """ ""# ?????????????????? | | #????????# """ ""############?????????????????? | +----------------------------------------------------+ Best States ------------- Heat Dissipation 149 Coolant Potential 65 Energy Generation 79 Energy Capacity 950 Matter Stores 300 Matter Capacity 300 Sight Range 23 Robot Scan Range 16 Terrain Scan Density 10 EM Shielding 2 Armor Coverage 450 Resistance: TH 15 Propulsion Shielding 66 Melee Speed Boost 20 Phase Shifting 20 Evasion (%) 63 Targeting Accuracy 20 Core Analysis 8 Recoil Reduction 2 Kinecelleration 50 Salvage Targeting 4 Offensive Hacking 20 Item Schematics ----------------- Exp. Heat Sink | -3/Testing | Archive Nanosword | -3/Testing | Archive Adv. Plasma Rifle | -3/Testing | Archive Cld. Impulse Thruster | -3/Testing | Archive Robot Schematics ------------------ None Fabricated ------------ Nothing Repaired ---------- Nothing Alien Tech Used ----------------- None Achievements -------------- None Challenges ------------ None Game ------ Seed ScrapBraceCompactor Manual? 0 Play Time 01:17:58 Cumulative 337.1 hours Start 2025.07.05 @ 13:23:33 End 2025.07.06 @ 12:21:04 Sessions 3 Manual Loads 0 Difficulty Rogue Special Mode None Game No. 325 Rogue 289 Adventurer 36 Explorer 0 Win Type - Total 12 Types 4/0/8/0/0/0/0/0/0/0 Lore% 70 Gallery% 82 Achievement% 74 Wizard Run 0 Options --------- Layout 0 ASCII 0 Keyboard 0 Movement Mouse Keybinds 0 Fullscreen 1 Font 18/SmallcapsGlow Map View 76x50 Zoom Use 0% Tactical HUD 1 Map Filters NONE Filters SHIFT_HUE(315) Steam 1 RUN: cadaa8c5-e3e9-4a4f-9882-56ea9b4fa7f3